Cogmind - Beta 13 @@@ ROGUE MODE // 2024.05.24 @ 12:05:59 Player: ForestDarkPsy Result: Destroyed by D-53 Grenadier with Mini Grenade Launcher Performance ------------- Evolutions (0) 0 Regions Visited (2) 400 Robots Destroyed (26) 130 Value Destroyed (413) 413 Prototype IDs (0) 0 Alien Tech Used (0) 0 Bonus (0) 0 TOTAL SCORE: 943 Bonus ------- None Cogmind --------- Core Integrity 0/250 Matter 280/300 Energy 230/250 System Corruption 0% Temperature Cool (0) Movement Rolling (215) Ox9 Location -10/Mines Parts ------- > --- POWER (1) -------- Ion Engine > --- PROPULSION (2) --- Wheel > --- UTILITY (2) ------ Huge Storage Unit Light Armor Plating > --- WEAPON (2) ------- Autogun Autogun > --- INVENTORY (25) --- High-capacity Matter Pod (187) Signal Interpreter Seismic Detector Hacking Suite Autogun Peak State ------------ > --- POWER ------------ Ion Engine > --- PROPULSION ------- Wheel Compact Wheel > --- UTILITY ---------- Small Storage Unit Seismic Detector > --- WEAPON ----------- Shotgun Shotgun > --- INVENTORY -------- Wheel Compact Wheel Hacking Suite Light Assault Rifle Light Assault Rifle Shotgun Shotgun Mining Laser [Rating: 10] Favorites ----------- Power Ion Engine Engine Ion Engine Propulsion Compact Wheel Wheel Compact Wheel Utility Light Armor Plating Device Seismic Detector Storage Huge Storage Unit Protection Light Armor Plating Weapon Shotgun Ballistic Gun Shotgun Build | -11 -10 -10 ------- Run | Yrd Mat Min Slots Evolved . | . . . Power . | . . . Propulsion . | . . . Utility . | . . . Weapon . | . . . Parts Attached 17 | 7 6 4 Power 1 | 1 . . Engine 1 | 1 . . Core . | . . . Reactor . | . . . Propulsion 4 | 2 1 1 Treads . | . . . Leg . | . . . Wheel 4 | 2 1 1 Hover . | . . . Flight . | . . . Utility 5 | 2 2 1 Device 1 | 1 . . Storage 2 | 1 1 . Processor . | . . . Hackware . | . . . Protection 2 | . 1 1 Artifact . | . . . Weapon 7 | 2 3 2 Energy Gun . | . . . Energy Cannon . | . . . Ballistic Gun 7 | 2 3 2 Ballistic Cannon . | . . . Launcher . | . . . Special Weapon . | . . . Impact Weapon . | . . . Slashing Weapon . | . . . Piercing Weapon . | . . . Special Melee Weapon . | . . . Unidentified Prototypes . | . . . Parts Lost 5 | . . 5 Power . | . . . Propulsion 2 | . . 2 Utility 1 | . . 1 Weapon 2 | . . 2 Highest Loss Streak 5 | . . 5 To Critical Strikes . | . . . Average Slot Usage (%) 100 | . 100 100 Engine 14 | . 14 14 Wheel 28 | . 28 28 Device 3 | . 5 . Storage 14 | . 14 14 Protection 10 | . 8 14 Ballistic Gun 28 | . 28 28 Naked Turns . | . . . Heaviest Build 94 | 13 94 94 Greatest Support 26 | 26 26 26 Greatest Overweight (x) 3 | . 3 3 Average Overweight (x) 1 | . 1 3 Largest Inventory Capacity 25 | 8 25 25 Average Capacity 17 | 7 15 25 Most Carried 9 | 2 9 9 Average Carried 7 | 1 7 8 Final Capacity 25 | 8 25 25 Final Carried 9 | 2 9 5 Class Distribution -------------------- 100% | Mutant Dominant Class ---------------- Mutant | -10/Materials Mutant | -10/Mines Resources | -11 -10 -10 ----------- Run | Yrd Mat Min Matter Collected 880 | 288 453 139 Remotely . | . . . Salvage Created 596 | 116 341 139 Parts 55 | 7 29 19 Haulers Intercepted 2 | . 2 . Recyclers Shooed 1 | . 1 . Parts Field Recycled . | . . . Retrieved Matter . | . . . Parts Self-Destructed . | . . . Prevented . | . . . Kills | -11 -10 -10 ------- Run | Yrd Mat Min Combat Hostiles Destroyed 18 | . 10 8 Guns 18 | . 10 8 Classes Destroyed 7 | 2 5 . Tunneler 3 | 3 . . Hauler 2 | . 2 . Recycler 1 | 1 . . Operator 1 | . 1 . Watcher 1 | . 1 . Swarmer 12 | . 6 6 Grunt 6 | . 4 2 Best Kill Streak 5 | 2 5 3 Combat Bots Only 5 | . 5 3 Max Kills in Single Turn 3 | 1 2 3 Gunslinging 1 | . . 1 Exploded . | . . . Melee . | . . . Uniques/NPCs Destroyed . | . . . Combat | -11 -10 -10 -------- Run | Yrd Mat Min Hostile Shots Fired 82 | . 48 34 Missed 28 | . 20 8 Damage Taken 942 | . 286 656 Core 250 | . 79 171 Absorbed by Shields . | . . . Core Remaining (%) 100 | 100 . . Volleys Fired 55 | 9 36 10 Largest 2 | 2 2 2 Hottest 46 | 40 46 46 Shots Fired 110 | 18 72 20 Gun 110 | 18 72 20 Cannon . | . . . Launcher . | . . . Special . | . . . Kinetic 110 | 18 72 20 Thermal . | . . . Explosive . | . . . Electromagnetic . | . . . Robot Hit Streak 8 | 4 8 6 Robot Miss Streak 7 | 1 7 3 Penetration Max . | . . . Secondary Targets 3 | . 1 2 Max Gunslinging Chain 1 | . 1 1 Shots Hit Robots 72 | 12 46 14 Core Hits 43 | 9 23 11 Critical Kills . | . . . Critical Parts Destroyed 2 | . 2 . Critical Strikes 2 | . 2 . Destroy 2 | . 2 . Melee Attacks . | . . . Impact . | . . . Slashing . | . . . Piercing . | . . . Sneak Attacks . | . . . Combat Hostiles . | . . . Follow-up Attacks . | . . . Damage Inflicted 955 | 87 634 234 Guns 955 | 87 634 234 Cannons . | . . . Explosions . | . . . Melee . | . . . Ramming . | . . . Kinetic 955 | 87 634 234 Thermal . | . . . Explosive . | . . . Electromagnetic . | . . . Impact . | . . . Slashing . | . . . Piercing . | . . . Highest Corruption . | . . . Average Corruption . | . . . Corruption Purged . | . . . Corruption Blocked . | . . . Overload Shots . | . . . Overflow Damage . | . . . Projectiles . | . . . Explosions . | . . . Melee . | . . . Knockbacks . | . . . Impact . | . . . Kinetic . | . . . Secondary . | . . . Self-Inflicted Damage . | . . . Shots . | . . . Rammed . | . . . Targets Rammed . | . . . Kicked . | . . . Crushed . | . . . Highest Temperature 24 | . 13 24 Average Temperature 10 | . 5 15 Received Heat Transfer 99 | . 63 36 Siege Activations . | . . . Robots Corrupted . | . . . Combat Hostiles . | . . . Parts Fried . | . . . Impact Corruptions . | . . . Robots Melted . | . . . Combat Hostiles . | . . . Parts Melted . | . . . Heat Transferred . | . . . Parts Sabotaged . | . . . Parts Stolen . | . . . Parts Stripped . | . . . Power Chain Reactions . | . . . Alert | -11 -10 -10 ------- Run | Yrd Mat Min Peak Influence 232 | 20 232 201 Initial 13 | . 13 1 Average 66 | 8 54 119 Maximum Alert Level 1 | . 1 1 Low Security (%) 90 | 100 94 73 Level 1 9 | . 5 26 Level 2 . | . . . Level 3 . | . . . Level 4 . | . . . Level 5 . | . . . High Security . | . . . Max Security . | . . . Squads Dispatched 1 | . 1 . Investigation . | . . . Extermination . | . . . Reinforcement 1 | . 1 . Assault . | . . . Garrison . | . . . Intercept . | . . . Searches Triggered . | . . . Construction Impeded . | . . . Haulers Reinforced . | . . . Active Scanning Responses . | . . . Cargo Convoy Interrupts . | . . . Stealth | -11 -10 -10 --------- Run | Yrd Mat Min Distress Signals 2 | . 2 . Communications Jammed . | . . . Distress Signals . | . . . Times Spotted 28 | . 18 10 Peak Tracking Total 6 | . 6 3 Tactical Retreats . | . . . Traps | -11 -10 -10 ------- Run | Yrd Mat Min Traps Triggered 1 | . 1 . Indirectly . | . . . Trap Hack Attempts . | . . . Triggered . | . . . Disarmed . | . . . Reprogrammed . | . . . Reused . | . . . Traps Extracted . | . . . Installed . | . . . Triggered . | . . . Machines | -11 -10 -10 ---------- Run | Yrd Mat Min Machines Disabled . | . . . Max in Single Turn . | . . . Machines Repaired . | . . . Machines Dismantled . | . . . Machines Sabotaged . | . . . Overloaded Fab Kills . | . . . Hacking | -11 -10 -10 --------- Run | Yrd Mat Min Machines Accessed 10 | . 9 1 Terminals 9 | . 8 1 Fabricators . | . . . Repair Stations 1 | . 1 . Recycling Units . | . . . Scanalyzers . | . . . Garrison Access . | . . . Total Hacks 30 | . 27 3 Successful 12 | . 10 2 Failed 18 | . 17 1 Catastrophic 3 | . 2 1 Database Lockouts . | . . . Manual 15 | . 13 2 Terminals 28 | . 25 3 Fabricators . | . . . Repair Stations 2 | . 2 . Recycling Units . | . . . Scanalyzers . | . . . Garrison Access . | . . . Terminal Hacks 7 | . 5 2 Robot Analysis 1 | . 1 . Terminal Index 1 | . 1 . Locate Traps 2 | . 2 . Dispatch Records 1 | . . 1 Zone Layout 2 | . 1 1 Fabricator Hacks . | . . . Repair Station Hacks 1 | . 1 . Scan Component 1 | . 1 . Recycling Unit Hacks . | . . . Scanalyzer . | . . . Garrison Access Hacks . | . . . Unauthorized Hacks 4 | . 4 . Terminals 4 | . 4 . Botnet 4 | . 4 . Fabricators . | . . . Repair Stations . | . . . Recycling Units . | . . . Scanalyzers . | . . . Garrison Access . | . . . Data Cores Recovered . | . . . Used . | . . . Hacking Detections 10 | . 9 1 Full Trace Events . | . . . Feedback Events . | . . . Feedback Blocked . | . . . Robot Schematics Acquired . | . . . Robots Built . | . . . Authchips . | . . . Time . | . . . Total Robot Build Rating . | . . . Part Schematics Acquired . | . . . Parts Built . | . . . Authchips . | . . . Time . | . . . Total Part Build Rating . | . . . Parts Repaired . | . . . Time . | . . . Parts Recycled . | . . . Recycled Matter . | . . . Retrieved Matter . | . . . Retrieved Components . | . . . Parts Scanalyzed . | . . . Part Schematics Acquired . | . . . Parts Damaged . | . . . Bothacking | -11 -10 -10 ------------ Run | Yrd Mat Min Used RIF Installer . | . . . Robots Hacked . | . . . Non-combat . | . . . Combat . | . . . Robot Hacks Applied . | . . . Relay Couplers Released . | . . . Fabnet Peak Effective % . | . . . Robots Rewired . | . . . Allies Hacked . | . . . Hacks Repelled . | . . . Allies | -11 -10 -10 -------- Run | Yrd Mat Min Total Allies 1 | . . 1 Largest Group 1 | . . 1 Highest-Rated Group 31 | . . 31 Highest-Rated Ally 31 | . . 31 Total Orders . | . . . Ally Attacks 2 | . . 2 Total Damage 42 | . . 42 Kills . | . . . Allies Corrupted . | . . . Allies Melted . | . . . Intel | -11 -10 -10 ------- Run | Yrd Mat Min Robot Analysis Total 1 | . 1 . Derelict Logs Recovered . | . . . Drone Launches . | . . . Drone Recoveries . | . . . Exploration | -11 -10 -10 ------------- Run | Yrd Mat Min Turns Passed 1497 | 87 1070 340 Spaces Moved 1088 | 58 813 217 Core 3 | 3 . . Treads . | . . . Legs . | . . . Wheels 1085 | 55 813 217 Hover . | . . . Flight . | . . . Fastest Speed 50 | 50 90 135 Average Speed 111 | 88 107 135 Slowest Speed 135 | 100 135 135 Overloaded Moves . | . . . Propulsion Burnouts . | . . . Robots Hopped . | . . . Cave-ins Triggered . | . . . Exploration Rate (%) 45 | 3 99 34 Regions Visited 2 Branch Regions 1 Pre-discovered Areas . | . . . Known Exits Taken . | . . . Unknown Exits Taken 2 | 1 1 . Scrap Searched . | . . . Spaces Dug . | . . . Terrain Destroyed . | . . . Melee . | . . . Projectile . | . . . AOE . | . . . Terrain Rammed . | . . . Walls Destroyed . | . . . Machines Disabled . | . . . Actions | -11 -10 -10 --------- Run | Yrd Mat Min Total 1264 | 75 945 244 Wait 84 | . 71 13 Move 1086 | 57 812 217 Hop . | . . . Pick Up 14 | 2 12 . Fast Attach 7 | 7 . . Attach 4 | . . 4 Detach . | . . . Swap 6 | . 6 . Drop 8 | . 8 . Fire 55 | 9 36 10 Melee . | . . . Ram . | . . . Kick . | . . . Crush . | . . . Escape Stasis . | . . . Rewire . | . . . Trap . | . . . Miscellaneous . | . . . Route ------- -11/Scrapyard -10/Materials (discovered 5 exits: [*Mat x3] / *Min x2) -10/Mines (discovered 1 exit: [*Mat]) History --------- Turn | Location | Event 6 | -11/Scrapyard | Discovered new exit (range 16) 88 | -11/Scrapyard | Entered Materials 308 | -10/Materials | Build established: Mutant 344 | -10/Materials | Discovered new exit (range 4) 464 | -10/Materials | Discovered new exit (range 14) 574 | -10/Materials | Discovered new exit (range 13) 1056 | -10/Materials | Discovered new exit (range 6) 1093 | -10/Materials | Discovered new exit (range 10) 1158 | -10/Materials | Entered Mines 1218 | -10/Mines | Discovered new exit (range 13) 1420 | -10/Mines | Received a Mining Laser from a helpful Derelict 1470 | -10/Mines | Assembled infested the area 1489 | -10/Mines | Core integrity fell below 50% 1498 | -10/Mines | Core integrity fell below 20% 1498 | -10/Mines | Destroyed by D-53 Grenadier with Mini Grenade Launcher Last Messages --------------- 01420_ D7-45S(g): "And why aren't you carrying a mining laser?! Certainly you don't want THEM to uncover you when the ceiling comes crashing down? Here, take my spare." 01423_ D7-45S(g): "You're apparently new around these parts, I'll cover you." 01433_ D7-45S(g): "Mining lasers are a lot more useful than you might think..." 01470_ ALERT: Infestation in the mines, dispatching Demolisher response squad. 01485_ C-30 ARC bursts open, deploying its payload. 01485_ D-53 Grenadier unfolds itself. 01485_ Seismic Survey Station disabled. 01486_ Lgt. Armor Plating destroyed. 01489_ R-06 Scavenger destroyed. 01490_ Shotgun destroyed. 01491_ Com. Wheel destroyed. 01492_ D7-45S(g) destroyed. 01493_ The unstable cave ceiling collapses. 01496_ Com. Wheel destroyed. 01496_ Shotgun destroyed. Map ----- +----------------------------------------------------+ | | | | | | | | | | | | | ?????????????????????????????????????????????????? | | ???????????????????#####?????????????????????????? | | ??????????????????## ##????????????????????????? | | ????????????####### < ###??????????????????????? | | #???????????# =[ = ######?????????????????? | | #####???????# = [= #?????????????????? | | ##??????# #### # #?????????????????? | | ######## ##?# ## #### #?????????????????? | | # #?# ########?## ##????????????????? | | "" ### # #?# #?????#### #????????????????? | | "" #?# # """ #?# #????## ##????????????????? | | "" ###=#* """ #?# #???## ##?????????????????? | | == [[""" #?# #?### ##??????????????????? | | #### #= #?# ### #???????????????????? | | ###### #####T##?# ##???????????????????? | | ## #???###??##### u ##???????????????????? | | ## #####????????????# ##??????????????????? | | ## #???????????????## % #??????????????????? | | ## #??????????###### dd ##??????????????????? | | ##?????????# @ #??????????????????? | | #?????????# #### ##?????????????????? | | #?????????# ##?# ##????????????##??? | | #????????## ### ##??????????? #??? | | ##??????### ## #?????????? #??? | | ##??????## | ## ##???????? ##?? | | ##??????# ### #####??? ##? | | ##?????# ##?# " ##?# #? | | #?????## ##??# ## #? | | ### #??????######??## ## #?? | | #?####?????????????## #### ##?? | | ???????????????????# # ###??## ## #??? | | ???????????????????# ########?????## ##???#??? | | ???????????????????# ??????????????####???????? | | ???????????????????# ?????????????????????????? | | ???????????????????## #?????????????????????????? | | ????????????????????###??????????????????????????? | | ?????????????????????????????????????????????????? | | ?????????????????????????????????????????????????? | | ?????????????????????????????????????????????????? | | ?????????????????????????????????????????????????? | | ?????????????????????????????????????????????????? | | ?????????????????????????????????????????????????? | | ?????????????????????????????????????????????????? | | ?????????????????????????????????????????????????? | +----------------------------------------------------+ Best States ------------- Heat Dissipation 25 Energy Generation 10 Energy Capacity 250 Matter Stores 300 Matter Capacity 300 Sight Range 16 Terrain Scan Density 10 Armor Coverage 150 Evasion (%) 42 Item Schematics ----------------- None Robot Schematics ------------------ None Fabricated ------------ Nothing Alien Tech Used ----------------- None Achievements -------------- None Challenges ------------ None Game ------ Seed ReinforcedFocalDerivative Manual? 0 Play Time 00:18:36 Cumulative 180.3 hours Start 2024.05.24 @ 11:41:51 End 2024.05.24 @ 12:05:59 Sessions 2 Manual Loads 0 Difficulty Rogue Special Mode None Game No. 155 Rogue 155 Adventurer 0 Explorer 0 Win Type - Total 0 Types 0/0/0/0/0/0/0/0/0 Lore% 40 Gallery% 47 Achievement% 37 Wizard Run 0 Options --------- Layout 0 ASCII 1 Keyboard 0 Movement Mouse Keybinds 0 Fullscreen 1 Font 18/SmallcapsGlow Map View 76x50 Zoom Use 0% Tactical HUD 1 Map Filters NONE Filters NONE Steam 1 RUN: 57f7f6f6-d63a-493d-b9ff-c958d9f2fb5d